bitfinex-derivatives/quotes_BNBF0:USTF0_20250128
["timestamp","ask_amount","ask_price","bid_price","bid_amount"]
[1738072887698,1.15795925,672.02,671.3,0.29792939]
[1738072887999,1.15795925,672.01,671.3,0.29792939]
[1738072888403,2.0310871,672.0,671.3,0.29792939]
[1738072888596,0.8731265,672.0,671.3,0.29792939]
[1738072888997,1.15808338,671.99,671.3,0.29792939]
[1738072889201,0.8731265,672.0,671.3,0.29792939]
[1738072889401,1.15809306,671.99,671.3,0.29792939]
[1738072889600,1.15809306,671.98,671.3,0.29792939]
[1738072889796,0.8731265,672.39,671.3,0.29792939]
[1738072890002,0.8731265,671.97,671.3,0.29792939]
[1738072890602,1.15853484,671.96,671.3,0.29792939]
[1738072890803,1.15853484,671.95,671.3,0.29792939]
[1738072891102,2.03166134,671.94,671.3,0.29792939]
[1738072891303,1.15853484,671.93,671.3,0.29792939]
[1738072891496,0.8731265,671.92,671.3,0.29792939]
[1738072892002,0.8731265,672.32,671.3,0.29792939]
[1738072892205,1.15861616,672.31,671.3,0.29792939]
[1738072892400,2.03174266,672.3,671.3,0.29792939]
[1738072892601,1.15861616,672.29,671.3,0.29792939]
[1738072892803,1.15861616,672.28,671.3,0.29792939]
[1738072893002,1.15861616,672.27,671.3,0.29792939]
[1738072893205,1.15861616,672.26,671.3,0.29792939]
[1738072893403,1.15861616,672.25,671.3,0.29792939]
[1738072893604,0.8731265,672.29,671.3,0.29792939]
[1738072893605,1.15861616,672.24,671.3,0.29792939]
[1738072893903,1.15861616,672.23,671.3,0.29792939]
[1738072894098,1.15861616,672.22,671.3,0.29792939]
[1738072894303,1.15861616,672.21,671.3,0.29792939]
[1738072894496,1.15861616,672.2,671.3,0.29792939]
[1738072894702,1.15861616,672.19,671.3,0.29792939]
[1738072894898,1.15861616,672.18,671.3,0.29792939]
[1738072895202,1.15861616,672.17,671.3,0.29792939]
[1738072895402,1.15861616,672.16,671.3,0.29792939]
[1738072895603,1.15861616,672.15,671.18,1.04687993]
[1738072895801,1.15861616,672.14,671.18,1.04687993]
[1738072896002,1.15861616,672.13,671.17,1.04687993]
[1738072896201,1.15861616,672.12,671.17,1.04687993]
[1738072896399,1.15861616,672.11,671.17,1.04687993]
[1738072896605,1.15861616,672.1,671.17,1.04687993]
[1738072896905,1.15861616,672.09,671.17,1.04687993]
[1738072897105,1.15861616,672.08,671.17,1.04687993]
[1738072897405,1.15861616,672.07,671.17,1.04687993]
[1738072897605,1.15861616,672.06,671.17,1.04687993]
[1738072897805,1.15861616,672.05,671.17,1.04687993]
[1738072898106,1.15861616,672.04,671.17,1.04687993]
[1738072898305,1.15861616,672.03,671.17,1.04687993]
[1738072898508,1.15861616,672.02,671.17,1.04687993]
[1738072898708,1.15861616,672.01,671.17,1.04687993]
[1738072898909,1.15861616,672.0,671.17,1.04687993]
[1738072899109,1.15861616,671.99,671.17,1.04687993]
[1738072899408,1.15861616,671.98,671.17,1.04687993]
[1738072899609,1.15816524,671.97,671.17,1.04687993]
[1738072899811,1.15816524,671.96,671.17,1.04687993]
[1738072900009,1.15816524,671.95,670.91,1.04687993]
[1738072900205,2.03129174,671.94,670.91,1.04687993]
[1738072900404,1.15816524,671.93,670.91,1.04687993]
[1738072900704,1.15816524,671.92,670.91,1.04687993]
[1738072900910,1.15816524,671.91,670.91,1.04687993]
[1738072901108,1.15816524,671.9,670.91,1.04687993]
[1738072901303,2.03129174,671.89,670.91,1.04687993]
[1738072901504,1.15816524,671.88,670.91,1.04687993]
[1738072901706,1.15816524,671.87,670.91,1.04687993]
[1738072902011,2.03129174,671.86,670.91,1.04687993]
[1738072902209,2.03129174,671.85,670.91,1.04687993]
[1738072902508,1.15816524,671.84,670.91,1.04687993]
[1738072902709,1.15816524,671.83,670.91,1.04687993]
[1738072902903,1.15816524,671.82,670.91,1.04687993]
[1738072903107,1.15816524,671.81,670.91,1.04687993]
[1738072903307,1.15816524,671.8,670.91,1.04687993]
[1738072903508,1.15816524,671.79,670.91,1.04687993]
[1738072903806,2.03129174,671.78,670.93,1.04687993]
[1738072904004,1.15816524,671.77,670.93,1.04687993]
[1738072904204,1.15816524,671.76,670.93,1.04687993]
[1738072904406,1.15816524,671.75,670.93,1.04687993]
[1738072904607,1.15816524,671.74,670.93,1.04687993]
[1738072904809,1.15816524,671.73,670.93,1.04687993]
[1738072905004,1.15816524,671.72,670.93,1.04687993]
[1738072905208,1.15816524,671.71,670.93,1.04687993]
[1738072905412,1.15816524,671.7,670.93,1.04687993]
[1738072905616,1.15713403,671.69,670.93,1.04687993]
[1738072905814,1.15713403,671.68,670.93,1.04687993]
[1738072906115,2.03023152,671.67,670.93,1.04687993]
[1738072906309,1.15710502,671.66,670.93,1.04687993]
[1738072906513,2.03023152,671.65,670.93,1.04687993]
[1738072906713,1.15710502,671.64,670.93,1.04687993]
[1738072906913,1.15710502,671.63,670.93,1.04687993]
[1738072907214,1.15710502,671.62,670.93,1.04687993]
[1738072907414,1.15710502,671.61,670.93,1.04687993]
[1738072907716,1.15710502,671.6,670.78,1.04687993]
[1738072907912,1.15710502,671.59,670.78,1.04687993]
[1738072908116,1.15710502,671.58,670.78,1.04687993]
[1738072908314,1.15577981,671.57,670.78,1.04687993]
[1738072908512,0.8731265,671.56,670.78,1.04687993]
[1738072909512,1.55476874,672.09,670.78,1.04687993]
[1738072909713,1.72671662,672.08,670.78,1.04687993]
[1738072909916,1.72672104,672.07,670.78,1.04687993]
[1738072910215,1.429133,672.06,670.78,1.04687993]
[1738072910416,1.429133,672.05,670.78,1.04687993]
[1738072910616,2.59824016,672.04,670.53,1.04687993]
[1738072910815,1.72673876,672.03,670.54,0.29826706]
[1738072911014,1.72674319,672.02,670.54,0.29826706]
[1738072911209,2.59825344,672.01,670.54,0.29826706]
[1738072911416,1.72675204,672.0,670.54,0.29826706]
[1738072911714,1.72676521,671.99,670.54,0.29826706]
[1738072912015,2.59827547,671.98,670.54,0.29826706]
[1738072912214,1.42914174,671.97,670.54,0.29826706]
[1738072912415,1.42914174,671.96,670.54,0.29826706]
[1738072912617,1.42914354,671.95,670.54,0.29826706]
[1738072912817,1.1554453,671.94,670.54,0.29826706]
[1738072913119,1.1554453,671.93,670.54,0.29826706]
[1738072913317,1.1554453,671.92,670.54,0.29826706]
[1738072913519,1.1554453,671.91,670.54,0.29826706]
[1738072913718,1.1554453,671.9,670.54,0.29826706]
[1738072913913,1.1554453,671.89,670.54,0.29826706]
[1738072914118,1.1554453,671.88,670.54,0.29826706]
[1738072914318,1.1554453,671.87,670.54,0.29826706]
[1738072914514,1.1554453,671.86,670.54,0.29826706]
[1738072914719,1.1554453,671.85,670.54,0.29826706]
[1738072915019,1.1554453,671.84,670.54,0.29826706]
[1738072915219,1.1554453,671.83,670.54,0.29826706]
[1738072915518,1.15413892,671.82,670.54,0.29826706]
[1738072915719,1.15413892,671.81,670.54,0.29826706]
[1738072916019,1.15413892,671.8,670.54,0.29826706]
[1738072916319,1.15413892,671.79,670.54,0.29826706]
[1738072916518,1.15413892,671.78,670.54,0.29826706]
[1738072916721,1.15413892,671.77,670.54,0.29826706]
[1738072916919,1.15413892,671.76,670.54,0.29826706]
[1738072917119,1.15413892,671.75,670.54,0.29826706]
[1738072917320,1.15413892,671.74,670.54,0.29826706]
[1738072917517,1.15413892,671.73,670.54,0.29826706]
[1738072917720,1.15413892,671.72,670.54,0.29826706]
[1738072917921,1.15413892,671.71,670.54,0.29826706]
[1738072918121,1.15413892,671.7,670.54,0.29826706]
[1738072918421,2.02564475,671.69,670.54,0.29826706]
[1738072918623,1.15413892,671.68,670.54,0.29826706]
[1738072918815,1.15413892,671.67,670.54,0.29826706]
[1738072919016,1.15413892,671.66,670.54,0.29826706]
[1738072919218,1.15413892,671.65,670.54,0.29826706]
[1738072919422,1.15413892,671.64,670.54,0.29826706]
[1738072919722,1.15413892,671.63,670.54,0.29826706]
[1738072919922,2.02564475,671.62,670.54,0.29826706]
[1738072920121,1.15413892,671.61,670.54,0.29826706]
[1738072920321,1.15413892,671.6,670.54,0.29826706]
[1738072920522,1.15413892,671.59,670.54,0.29826706]
[1738072920724,0.87150583,671.6,670.54,0.29826706]
[1738072920924,0.29763233,671.97,670.54,0.29826706]
[1738072921220,1.15413375,671.96,670.54,0.29826706]
[1738072921420,1.15415524,671.95,670.54,0.29826706]
[1738072921622,1.15415524,671.94,670.54,0.29826706]
[1738072921821,1.15415524,671.93,670.54,0.29826706]
[1738072922022,1.15415524,671.92,670.54,0.29826706]
[1738072922224,1.15415524,671.91,670.54,0.29826706]
[1738072922425,1.15415524,671.9,670.54,0.29826706]
[1738072922625,1.15415524,671.89,670.54,0.29826706]
[1738072922825,1.15415524,671.88,670.54,0.29826706]
[1738072923021,1.15415524,671.87,670.54,0.29826706]
[1738072923226,1.15415524,671.86,670.54,0.29826706]
[1738072923525,1.15423085,671.85,670.54,0.29826706]
[1738072923722,2.02472429,671.84,670.54,0.29826706]
[1738072923927,1.42793221,671.83,670.54,0.29826706]
[1738072924123,1.42780001,671.82,670.54,0.29826706]
[1738072924324,1.15409865,671.81,670.54,0.29826706]
[1738072924523,2.02459209,671.8,670.54,0.29826706]
[1738072924825,2.02459209,671.79,670.54,0.29826706]
[1738072925026,1.15409865,671.78,670.54,0.29826706]
[1738072925225,1.15409865,671.77,670.54,0.29826706]
[1738072925426,1.15409865,671.76,670.54,0.29826706]
[1738072925622,1.15409865,671.75,670.54,0.29826706]
[1738072925827,1.15409865,671.74,670.54,0.29826706]
[1738072926027,1.15409865,671.73,670.54,0.29826706]
[1738072926228,1.15409865,671.72,670.54,0.29826706]
[1738072926425,0.87049344,671.71,670.54,0.29826706]
[1738072926627,1.15409865,671.7,670.54,0.29826706]
[1738072927330,0.87049344,671.69,670.54,0.29826706]
[1738072927528,1.15409865,671.68,670.54,0.29826706]
[1738072928430,0.87049344,671.67,670.54,0.29826706]
[1738072928729,1.15409865,671.66,670.54,0.29826706]
[1738072929129,1.15409865,671.66,670.55,1.04687993]
[1738072929331,0.87049344,671.67,670.56,0.29825817]
[1738072929522,0.87049344,671.65,670.56,0.29825817]
[1738072929724,1.15448655,671.64,670.56,0.29825817]
[1738072929927,1.15448655,671.63,670.56,0.29825817]
[1738072930123,2.02497999,671.62,670.56,0.29825817]
[1738072930326,1.15448655,671.61,670.56,0.29825817]
[1738072930728,0.87049344,671.6,670.56,0.29825817]
[1738072930924,1.15448655,671.59,670.56,0.29825817]
[1738072931125,0.87049344,671.6,670.56,0.29825817]
[1738072931530,1.55523775,671.95,670.56,0.29825817]
[1738072931831,2.02530614,671.94,670.56,0.29825817]
[1738072932028,1.15452329,671.93,670.64,1.04687993]
[1738072932225,1.15452329,671.92,670.64,1.04687993]
[1738072932424,1.15452329,671.91,670.64,1.04687993]
[1738072932636,2.02530614,671.9,670.64,1.04687993]
[1738072932932,1.15452329,671.89,670.64,1.04687993]
[1738072933234,1.15452329,671.88,670.64,1.04687993]
[1738072933433,1.15452329,671.87,670.64,1.04687993]
[1738072933633,1.15452329,671.86,670.64,1.04687993]
[1738072933833,1.15452329,671.85,670.64,1.04687993]
[1738072934134,1.15452329,671.84,670.64,1.04687993]
[1738072934334,1.15452329,671.83,670.64,1.04687993]
[1738072934530,1.15452329,671.82,670.64,1.04687993]
[1738072934734,1.15452329,671.81,670.64,1.04687993]
[1738072935034,1.15452329,671.8,670.64,1.04687993]
[1738072935235,1.15452329,671.79,670.64,1.04687993]
[1738072935436,1.15452329,671.78,670.64,1.04687993]
[1738072935735,2.02530614,671.77,670.64,1.04687993]
[1738072935937,1.15452329,671.76,670.68,1.04687993]
[1738072936236,2.02530614,671.76,670.68,1.04687993]
[1738072936436,1.15452329,671.75,670.68,1.04687993]
[1738072936636,2.02530614,671.75,670.68,1.04687993]
[1738072936935,1.15452329,671.74,670.68,1.04687993]
[1738072937134,2.02530614,671.74,670.68,1.04687993]
[1738072937335,1.15452329,671.73,670.68,1.04687993]
[1738072937937,0.87078285,671.72,670.68,1.04687993]
[1738072938235,1.15452329,671.71,670.68,1.04687993]
[1738072939035,0.87078285,671.7,670.68,1.04687993]
[1738072939236,1.15452329,671.69,670.8,1.04687993]
[1738072939635,2.02530614,671.69,670.8,1.04687993]
[1738072939836,1.15452329,671.68,670.8,1.04687993]
[1738072940031,2.02530614,671.68,670.8,1.04687993]
[1738072940231,1.15452329,671.67,670.8,1.04687993]
[1738072940635,0.87078285,671.66,670.8,1.04687993]
[1738072940835,1.15452329,671.65,670.8,1.04687993]
[1738072941230,0.87078285,671.64,670.8,1.04687993]
[1738072941432,1.15452329,671.63,670.8,1.04687993]
[1738072941938,0.87078285,671.62,670.8,1.04687993]
[1738072942238,1.15452329,671.61,670.8,1.04687993]
[1738072942632,0.87078285,671.6,670.77,1.04687993]
[1738072942835,1.15452329,671.59,670.77,1.04687993]
[1738072943336,0.87078285,671.58,670.77,1.04687993]
[1738072943536,1.15452329,671.57,670.77,1.04687993]
[1738072943934,0.87078285,671.56,670.77,1.04687993]
[1738072944834,0.87078285,671.85,670.77,1.04687993]
[1738072945034,1.15622403,671.84,670.77,1.04687993]
[1738072945233,1.15622403,671.83,670.77,1.04687993]
[1738072945537,1.15654265,671.82,670.77,1.04687993]
[1738072945742,1.15654265,671.81,670.77,1.04687993]
[1738072945938,1.15654265,671.8,670.83,1.04687993]
[1738072946138,1.15654265,671.79,670.83,1.04687993]
[1738072946339,0.87078285,671.82,670.83,1.04687993]
[1738072946340,1.15654265,671.78,670.83,1.04687993]
[1738072946641,1.15654265,671.77,670.83,1.04687993]
[1738072947039,0.87078285,671.76,670.83,1.04687993]
[1738072947238,1.15654265,671.75,670.83,1.04687993]
[1738072947940,2.0273255,671.74,670.83,1.04687993]
[1738072948139,1.15654265,671.73,670.83,1.04687993]
[1738072948341,2.0273255,671.72,670.83,1.04687993]
[1738072948539,1.15654265,671.71,670.83,1.04687993]
[1738072948840,2.0273255,671.7,670.83,1.04687993]
[1738072949136,2.02976447,671.69,670.96,1.04687993]
[1738072949334,1.15654265,671.68,670.96,1.04687993]
[1738072949535,1.15654265,671.67,670.96,1.04687993]
[1738072949734,1.15654265,671.66,670.96,1.04687993]
[1738072949940,1.15654265,671.65,670.96,1.04687993]
[1738072950140,1.15654265,671.64,670.96,1.04687993]
[1738072950342,1.15654265,671.63,670.96,1.04687993]
[1738072950543,1.15654265,671.62,670.96,1.04687993]
[1738072950739,1.15654265,671.61,670.96,1.04687993]
[1738072950937,1.15654265,671.6,670.96,1.04687993]
[1738072951135,1.15654265,671.59,670.96,1.04687993]
[1738072951441,1.15654265,671.58,670.96,1.04687993]
[1738072951640,1.15654265,671.57,670.76,1.04687993]
[1738072951836,1.15654265,671.56,670.76,1.04687993]
[1738072952034,1.15872419,671.55,670.76,1.04687993]
[1738072952239,1.15872419,671.54,670.76,1.04687993]
[1738072952436,1.15872419,671.53,670.76,1.04687993]
[1738072952639,1.15872419,671.52,670.76,1.04687993]
[1738072952839,1.15872419,671.51,670.76,1.04687993]
[1738072953035,2.03194601,671.5,670.76,1.04687993]
[1738072953241,1.15872419,671.49,670.76,1.04687993]
[1738072953445,1.15872419,671.48,670.76,1.04687993]
[1738072953640,1.15872419,671.47,670.76,1.04687993]
[1738072953842,2.03194601,671.46,670.76,1.04687993]
[1738072954043,0.87322182,671.46,670.76,1.04687993]
[1738072954247,2.03297693,671.45,670.72,1.04687993]
[1738072954544,1.15975511,671.44,670.72,1.04687993]
[1738072954745,0.87322182,671.45,670.72,1.04687993]
[1738072955044,0.87322182,671.43,670.72,1.04687993]
[1738072955743,0.29763233,671.97,670.72,1.04687993]
[1738072955941,1.16049387,671.96,670.72,1.04687993]
[1738072956141,1.16049387,671.95,670.72,1.04687993]
[1738072956343,1.45813949,671.94,670.72,1.04687993]
[1738072956542,1.45814392,671.93,670.72,1.04687993]
[1738072956750,1.55524934,671.85,670.72,1.04687993]
[1738072956944,1.16049387,671.84,670.72,1.04687993]
[1738072957148,1.16049387,671.83,670.72,1.04687993]
[1738072957349,1.16049387,671.82,670.72,1.04687993]
[1738072957549,1.16049387,671.81,670.72,1.04687993]
[1738072957751,1.16049387,671.8,670.72,1.04687993]
[1738072957950,1.16049387,671.79,670.72,1.04687993]
[1738072958153,1.16049387,671.78,670.76,1.04687993]
[1738072958454,1.16049387,671.77,670.76,1.04687993]
[1738072958652,1.16049387,671.76,670.76,1.04687993]
[1738072958849,1.16049387,671.75,670.76,1.04687993]
[1738072959051,2.03579034,671.74,670.76,1.04687993]
[1738072959252,1.16049387,671.73,670.76,1.04687993]
[1738072959454,1.16049387,671.72,670.76,1.04687993]
[1738072959654,1.16049387,671.71,670.76,1.04687993]
[1738072959854,2.03579034,671.7,670.76,1.04687993]
[1738072960048,1.16049387,671.69,670.76,1.04687993]
[1738072960250,1.16049387,671.68,670.76,1.04687993]
[1738072960455,1.16049387,671.67,670.76,1.04687993]
[1738072960648,1.16049387,671.66,670.72,1.04687993]
[1738072960847,2.03579034,671.65,670.72,1.04687993]
[1738072961053,1.16049387,671.64,670.72,1.04687993]
[1738072961253,2.03579034,671.63,670.72,1.04687993]
[1738072961453,1.16049387,671.62,670.72,1.04687993]
[1738072961651,1.16049387,671.61,670.72,1.04687993]
[1738072961856,2.03579034,671.6,670.72,1.04687993]
[1738072962156,1.16049387,671.59,670.72,1.04687993]
[1738072962354,2.03579034,671.58,670.72,1.04687993]
[1738072962549,1.16049387,671.57,670.72,1.04687993]
[1738072962750,1.16049387,671.56,670.72,1.04687993]
[1738072962953,1.16049387,671.55,670.72,1.04687993]
[1738072963150,1.16049387,671.54,670.72,1.04687993]
[1738072963350,1.16049387,671.53,670.72,1.04687993]
[1738072963549,1.16049387,671.52,670.56,1.3451381]
[1738072963756,1.16049387,671.51,670.56,1.3451381]
[1738072963955,1.16049387,671.5,670.56,1.3451381]
[1738072964254,1.16049387,671.49,670.56,1.3451381]
[1738072964455,1.16049387,671.48,670.56,1.3451381]
[1738072964647,2.03579034,671.47,670.56,1.3451381]
[1738072964854,1.16049387,671.46,670.56,1.3451381]
[1738072965154,1.16049387,671.45,670.56,1.3451381]
[1738072965357,1.16049387,671.44,670.56,1.3451381]
[1738072965655,1.16049387,671.43,670.56,1.3451381]
[1738072965853,1.16049387,671.42,670.56,1.3451381]
[1738072966055,1.16049387,671.41,670.56,1.3451381]
[1738072966355,1.16049387,671.4,670.56,0.29825817]
[1738072966556,1.16049387,671.39,670.56,0.29825817]
[1738072966749,1.16049387,671.38,670.56,0.29825817]
[1738072966952,1.16049387,671.37,670.56,0.29825817]
[1738072967154,2.03579034,671.36,670.56,0.29825817]
[1738072967355,1.16049387,671.35,670.56,0.29825817]
[1738072967551,0.87529647,671.36,670.56,0.29825817]
[1738072967755,0.87529647,671.34,670.56,0.29825817]
[1738072968156,0.29765448,671.92,670.56,0.29825817]
[1738072968451,1.16151231,671.91,670.56,0.29825817]
[1738072968654,1.43519543,671.9,670.56,0.29825817]
[1738072968851,1.43519543,671.89,670.56,0.29825817]
[1738072969052,1.43519543,671.88,670.56,0.29825817]
[1738072969256,1.43519543,671.87,670.56,0.29825817]
[1738072969457,1.43519543,671.86,670.56,0.29825817]
[1738072969758,1.43519543,671.85,670.56,0.29825817]
[1738072969956,2.31128949,671.84,670.56,0.29825817]
[1738072970158,1.16151231,671.83,670.61,1.04687993]
[1738072970352,1.16151231,671.82,670.61,1.04687993]
[1738072970557,2.03760637,671.81,670.61,1.04687993]
[1738072970760,1.16151231,671.8,670.61,1.04687993]
[1738072970960,1.16151231,671.79,670.61,1.04687993]
[1738072971161,1.16151231,671.78,670.61,1.04687993]
[1738072971361,1.16151231,671.77,670.61,1.04687993]
[1738072971564,1.16151231,671.76,670.61,1.04687993]
[1738072971762,1.16151231,671.75,670.61,1.04687993]
[1738072971962,2.03760637,671.74,670.61,1.04687993]
[1738072972164,1.16151231,671.73,670.61,1.04687993]
[1738072972360,1.16151231,671.72,670.61,1.04687993]
[1738072972561,1.16151231,671.71,670.61,1.04687993]
[1738072972762,1.16151231,671.7,670.82,1.04687993]
[1738072972960,1.16151231,671.69,670.82,1.04687993]
[1738072973164,2.03760637,671.68,670.82,1.04687993]
[1738072973364,1.16151231,671.67,670.82,1.04687993]
[1738072973559,1.16151231,671.66,670.82,1.04687993]
[1738072973864,1.16151231,671.65,670.82,1.04687993]
[1738072974065,1.16151231,671.64,670.82,1.04687993]
[1738072974265,1.16151231,671.63,670.82,1.04687993]
[1738072974467,2.03760637,671.62,670.82,1.04687993]
[1738072974661,1.16151231,671.61,670.82,1.04687993]
[1738072974865,1.16151231,671.6,670.82,1.04687993]
[1738072975066,1.16151231,671.59,670.82,1.04687993]
[1738072975366,1.16151231,671.58,670.82,1.04687993]
[1738072975566,1.16151231,671.57,670.82,1.04687993]
[1738072975767,1.16151231,671.56,670.83,1.04687993]
[1738072976067,1.16151231,671.55,670.83,1.04687993]
[1738072976268,1.16151231,671.54,670.83,1.04687993]
[1738072976568,1.16151231,671.53,670.83,1.04687993]
[1738072976868,2.03760637,671.52,670.83,1.04687993]
[1738072977168,1.16151231,671.51,670.83,1.04687993]
[1738072977366,1.16151231,671.5,670.83,1.04687993]
[1738072977567,0.87609406,671.51,670.83,1.04687993]
[1738072977768,0.29765448,671.92,670.83,1.04687993]
[1738072977969,1.16160556,671.91,670.83,1.04687993]
[1738072978164,1.16160556,671.9,670.83,1.04687993]
[1738072978470,2.03762878,671.89,670.83,1.04687993]
[1738072978664,1.16160556,671.88,670.83,1.04687993]
[1738072978864,1.16160556,671.87,670.79,1.04687993]
[1738072979070,1.16160556,671.86,670.79,1.04687993]
[1738072979271,1.16160556,671.85,670.79,1.04687993]
[1738072979471,1.16160556,671.84,670.79,1.04687993]
[1738072979771,2.03762878,671.83,670.79,1.04687993]
[1738072979972,1.16160556,671.82,670.79,1.04687993]
[1738072980171,1.16160556,671.81,670.79,1.04687993]
[1738072980372,1.16160556,671.8,670.79,1.04687993]
[1738072980572,1.16160556,671.79,670.79,1.04687993]
[1738072980768,1.16160556,671.78,670.79,1.04687993]
[1738072980968,1.16160556,671.77,670.79,1.04687993]
[1738072981170,2.03762878,671.76,670.79,1.04687993]
[1738072981367,1.16160556,671.75,670.79,1.04687993]
[1738072981572,1.16160556,671.74,670.79,1.04687993]
[1738072981767,1.16160556,671.73,670.68,1.04687993]
[1738072981973,1.16160556,671.72,670.68,1.04687993]
[1738072982175,1.16160556,671.71,670.68,1.04687993]
[1738072982376,1.43537132,671.7,670.68,1.04687993]
[1738072982575,1.43537132,671.69,670.68,1.04687993]
[1738072982771,1.43537843,671.68,670.68,1.04687993]
[1738072982970,1.16160556,671.67,670.68,1.04687993]
[1738072983172,1.16160556,671.66,670.68,1.04687993]
[1738072983372,1.16160556,671.65,670.68,1.04687993]
[1738072983571,1.16160556,671.64,670.68,1.04687993]
[1738072983776,1.16160556,671.63,670.68,1.04687993]
[1738072983979,1.16160556,671.62,670.68,1.04687993]
[1738072984278,1.16160556,671.61,670.68,1.04687993]
[1738072984478,1.16160556,671.6,670.68,1.04687993]
[1738072984679,1.16160556,671.59,670.68,1.04687993]
[1738072984878,1.16160556,671.58,670.68,1.04687993]
[1738072985079,1.16160556,671.57,670.68,1.04687993]
[1738072985381,1.16160556,671.56,670.62,1.04687993]
[1738072985580,1.16160556,671.55,670.62,1.04687993]
[1738072985877,1.16160556,671.54,670.62,1.04687993]
[1738072986080,1.16160556,671.53,670.62,1.04687993]
[1738072986382,2.03762878,671.52,670.62,1.04687993]
[1738072986680,1.55543471,671.72,670.62,1.04687993]
[1738072986681,2.03762878,671.51,670.62,1.04687993]
[1738072986882,1.16160556,671.5,670.62,1.04687993]
[1738072987080,2.03762878,671.49,670.62,1.04687993]
[1738072987381,1.16160556,671.48,670.62,1.04687993]
[1738072987582,1.16160556,671.47,670.62,1.04687993]
[1738072987784,1.16160556,671.47,670.56,0.29825817]
[1738072987785,1.16160556,671.46,670.56,0.29825817]
[1738072987980,1.16160556,671.45,670.56,0.29825817]
[1738072988181,2.03762878,671.44,670.56,0.29825817]
[1738072988377,0.87602322,671.44,670.56,0.29825817]
[1738072988682,0.29765448,671.92,670.56,0.29825817]
[1738072988881,1.16087832,671.91,670.56,0.29825817]
[1738072989082,2.0364543,671.9,670.56,0.29825817]
[1738072989281,1.16087832,671.89,670.56,0.29825817]
[1738072989481,1.16087832,671.88,670.56,0.29825817]
[1738072989680,1.16087832,671.87,670.56,0.29825817]
[1738072989882,1.16087832,671.86,670.56,0.29825817]
[1738072990082,1.16087832,671.85,670.56,0.29825817]
[1738072990283,1.16087832,671.84,670.56,0.29825817]
[1738072990484,1.16087832,671.83,670.56,0.29825817]
[1738072990683,1.16087832,671.82,670.68,1.04687993]
[1738072990877,1.16087832,671.81,670.68,1.04687993]
[1738072991080,1.16087832,671.8,670.68,1.04687993]
[1738072991284,1.16087832,671.79,670.68,1.04687993]
[1738072991484,1.16087832,671.78,670.68,1.04687993]
[1738072991683,1.16087832,671.77,670.68,1.04687993]
[1738072991883,1.16087832,671.76,670.68,1.04687993]
[1738072992183,1.16087832,671.75,670.68,1.04687993]
[1738072992385,1.16087832,671.74,670.68,1.04687993]
[1738072992585,1.16087832,671.73,670.68,1.04687993]
[1738072992784,1.16087832,671.72,670.68,1.04687993]
[1738072992984,1.16087832,671.71,670.68,1.04687993]
[1738072993285,2.0364543,671.7,670.68,1.04687993]
[1738072993485,1.16087832,671.69,670.68,1.04687993]
[1738072993785,0.29765448,671.92,670.56,0.29825817]
[1738072993786,2.0364543,671.68,670.56,0.29825817]
[1738072993985,1.16087832,671.67,670.56,0.29825817]
[1738072994184,1.16087832,671.66,670.56,0.29825817]
[1738072994383,1.16087832,671.65,670.56,0.29825817]
[1738072994583,1.16087832,671.64,670.56,0.29825817]
[1738072994884,1.16087832,671.63,670.56,0.29825817]
[1738072995085,1.16087832,671.62,670.56,0.29825817]
[1738072995285,1.16087832,671.61,670.56,0.29825817]
[1738072995486,1.16087832,671.6,670.56,0.29825817]
[1738072995784,1.16087832,671.59,670.56,0.29825817]
[1738072995987,1.16087832,671.58,670.56,0.29825817]
[1738072996181,1.16087832,671.57,670.56,0.29825817]
[1738072996385,1.16087832,671.56,670.56,0.29825817]
[1738072996581,1.16087832,671.55,670.56,0.29825817]
[1738072996786,1.16087832,671.54,670.56,0.29825817]
[1738072996986,1.16087832,671.53,670.56,0.29825817]
[1738072997186,1.16087832,671.52,670.56,0.29825817]
[1738072997383,1.16087832,671.51,670.56,0.29825817]
[1738072997582,2.0364543,671.5,670.56,0.29825817]
[1738072997785,1.16087832,671.49,670.56,0.29825817]
[1738072997984,1.16087832,671.48,670.56,0.29825817]
[1738072998182,1.16087832,671.47,670.56,0.29825817]
[1738072998385,1.16087832,671.46,670.56,0.29825817]
[1738072998586,1.16087832,671.45,670.56,0.29825817]
[1738072998785,1.16087832,671.44,670.56,0.29825817]
[1738072999085,0.87557598,671.45,670.56,0.29825817]
[1738072999284,0.87557598,671.43,670.56,0.29825817]
[1738072999988,0.87557598,671.42,670.56,0.29825817]
[1738073000588,1.5556491,671.9,670.56,0.29825817]
[1738073000788,1.16139933,671.89,670.56,0.29825817]
[1738073000984,1.16139933,671.88,670.56,0.29825817]
[1738073001183,1.16139933,671.87,670.56,0.29825817]
[1738073001388,1.16139933,671.86,670.56,0.29825817]
[1738073001588,1.16139933,671.85,670.56,0.29825817]
[1738073001890,2.03737903,671.84,670.56,0.29825817]
[1738073002089,2.03737903,671.83,670.56,0.29825817]
[1738073002291,1.16139933,671.82,670.56,0.29825817]
[1738073002589,2.03737903,671.81,670.56,0.29825817]
[1738073002789,1.16139933,671.8,670.56,0.29825817]
[1738073003089,1.16126196,671.79,670.56,0.29825817]
[1738073003289,1.16126196,671.78,670.56,0.29825817]
[1738073003486,1.16126196,671.77,670.56,0.29825817]
[1738073003691,1.16126196,671.76,670.56,0.29825817]